[Event "SS Manhem Chess Week 2019 Goteborg Open"]
[Site "Molnlycke kulturhus, Biblioteksgatan 2, Molnlycke, Sweden"]
[Date "2019.08.16"]
[Round "2.8"]
[White "Ahlander, Bjorn"]
[Black "Troedsson, Anton"]
[Result "1-0"]
[TimeControl "15 minutes + 5 seconds per move from move one (Round 1 - 4) / 90 minutes + 30 seconds per move from move one (Round 5 - 8)"]
[WhiteTitle "IM"]
[WhiteFideId "1700251"]
[BlackFideId "1746006"]
[WhiteElo "2390"]
[BlackElo "2045"]

1. d4 {[%clk 00:15:00]} {[%emt 00:00:07]} d5 {[%clk 00:15:09]} {[%emt
00:00:02]} 2. c4 {[%clk 00:15:03]} {[%emt 00:00:02]} c6 {[%clk 00:15:11]}
{[%emt 00:00:03]} 3. Nc3 {[%clk 00:15:06]} {[%emt 00:00:02]} Nf6 {[%clk
00:15:14]} {[%emt 00:00:02]} 4. Nf3 {[%clk 00:15:09]} {[%emt 00:00:02]} g6
{[%clk 00:15:13]} {[%emt 00:00:06]} 5. Bf4 {[%clk 00:15:08]} {[%emt 00:00:05]}
Bg7 {[%clk 00:15:12]} {[%emt 00:00:08]} 6. e3 {[%clk 00:15:10]} {[%emt
00:00:03]} O-O {[%clk 00:15:02]} {[%emt 00:00:15]} 7. h3 {[%clk 00:15:13]}
{[%emt 00:00:02]} Nbd7 {[%clk 00:14:38]} {[%emt 00:00:29]} 8. Rc1 {[%clk
00:15:15]} {[%emt 00:00:02]} e6 {[%clk 00:13:51]} {[%emt 00:00:53]} 9. a3
{[%clk 00:15:04]} {[%emt 00:00:17]} Re8 {[%clk 00:13:40]} {[%emt 00:00:15]} 10.
Be2 {[%clk 00:14:57]} {[%emt 00:00:11]} b6 {[%clk 00:13:22]} {[%emt 00:00:24]}
11. cxd5 {[%clk 00:14:29]} {[%emt 00:00:33]} exd5 {[%clk 00:13:15]} {[%emt
00:00:12]} 12. O-O {[%clk 00:14:30]} {[%emt 00:00:03]} Bb7 {[%clk 00:13:09]}
{[%emt 00:00:11]} 13. b4 {[%clk 00:14:26]} {[%emt 00:00:09]} Qe7 {[%clk
00:12:29]} {[%emt 00:00:46]} 14. Qb3 {[%clk 00:14:26]} {[%emt 00:00:04]} a6
{[%clk 00:11:53]} {[%emt 00:00:41]} 15. Bd3 {[%clk 00:14:27]} {[%emt 00:00:04]}
Ra7 {[%clk 00:10:59]} {[%emt 00:01:00]} 16. Rfd1 {[%clk 00:12:49]} {[%emt
00:01:42]} h6 {[%clk 00:10:42]} {[%emt 00:00:22]} 17. Ne5 {[%clk 00:12:29]}
{[%emt 00:00:24]} Nh5 {[%clk 00:08:39]} {[%emt 00:02:09]} 18. Nxd7 {[%clk
00:12:31]} {[%emt 00:00:02]} Nxf4 {[%clk 00:08:39]} {[%emt 00:00:05]} 19. Nxb6
{[%clk 00:12:21]} {[%emt 00:00:15]} Ne6 {[%clk 00:07:43]} {[%emt 00:01:02]} 20.
Nca4 {[%clk 00:12:04]} {[%emt 00:00:21]} a5 {[%clk 00:07:28]} {[%emt 00:00:20]}
21. Nc5 {[%clk 00:11:58]} {[%emt 00:00:11]} axb4 {[%clk 00:07:17]} {[%emt
00:00:17]} 22. axb4 {[%clk 00:11:59]} {[%emt 00:00:03]} Qd8 {[%clk 00:06:54]}
{[%emt 00:00:29]} 23. Nxe6 {[%clk 00:10:38]} {[%emt 00:01:25]} Rxe6 {[%clk
00:06:50]} {[%emt 00:00:09]} 24. Na4 {[%clk 00:10:40]} {[%emt 00:00:03]} Re8
{[%clk 00:06:28]} {[%emt 00:00:27]} 25. Nc5 {[%clk 00:10:30]} {[%emt 00:00:15]}
Bc8 {[%clk 00:06:32]} {[%emt 00:00:02]} 26. Ra1 {[%clk 00:09:52]} {[%emt
00:00:42]} Ree7 {[%clk 00:05:58]} {[%emt 00:00:39]} 27. b5 {[%clk 00:09:20]}
{[%emt 00:00:38]} cxb5 {[%clk 00:04:59]} {[%emt 00:01:04]} 28. Qxb5 {[%clk
00:09:22]} {[%emt 00:00:02]} Bf8 {[%clk 00:03:42]} {[%emt 00:01:21]} 29. Be2
{[%clk 00:07:28]} {[%emt 00:01:59]} Rec7 {[%clk 00:02:35]} {[%emt 00:01:13]} 30.
Bf3 {[%clk 00:07:17]} {[%emt 00:00:15]} Bf5 {[%clk 00:02:30]} {[%emt 00:00:10]}
31. Rxa7 {[%clk 00:07:05]} {[%emt 00:00:18]} Rxa7 {[%clk 00:02:34]} {[%emt
00:00:01]} 32. Qc6 {[%clk 00:07:07]} {[%emt 00:00:02]} Rc7 {[%clk 00:01:51]}
{[%emt 00:00:49]} 33. Qb6 {[%clk 00:06:25]} {[%emt 00:00:47]} Rc8 {[%clk
00:01:39]} {[%emt 00:00:17]} 34. Qxd8 {[%clk 00:05:11]} {[%emt 00:01:19]} Rxd8
{[%clk 00:01:43]} {[%emt 00:00:01]} 35. Nd3 {[%clk 00:05:15]} g5 {[%clk
00:01:20]} {[%emt 00:00:28]} 36. Ne5 {[%clk 00:05:18]} {[%emt 00:00:02]} Be6
{[%clk 00:01:12]} {[%emt 00:00:13]} 37. Bg4 {[%clk 00:05:00]} {[%emt 00:00:23]}
Bg7 {[%clk 00:00:33]} {[%emt 00:00:44]} 38. Nd3 {[%clk 00:04:50]} {[%emt
00:00:15]} Ra8 {[%clk 00:00:32]} {[%emt 00:00:07]} 39. Nc5 {[%clk 00:04:42]}
{[%emt 00:00:12]} Bc8 {[%clk 00:00:29]} {[%emt 00:00:09]} 40. Bxc8 Rxc8 {[%clk
00:00:33]} 41. g4 {[%clk 00:04:36]} {[%emt 00:00:01]} Bf8 {[%clk 00:00:33]}
{[%emt 00:00:05]} 42. Nd3 {[%clk 00:04:39]} {[%emt 00:00:02]} Kg7 {[%clk
00:00:36]} {[%emt 00:00:02]} 43. Kg2 {[%clk 00:04:43]} {[%emt 00:00:01]} Kf6
{[%clk 00:00:38]} {[%emt 00:00:03]} 44. Rb1 {[%clk 00:04:35]} {[%emt 00:00:13]}
Rc6 {[%clk 00:00:42]} 45. Ne5 {[%clk 00:04:34]} {[%emt 00:00:06]} Ra6 {[%clk
00:00:42]} {[%emt 00:00:06]} 46. Rb7 {[%clk 00:04:32]} {[%emt 00:00:06]} Be7
{[%clk 00:00:41]} {[%emt 00:00:06]} 47. Kf3 {[%clk 00:04:35]} {[%emt 00:00:03]}
Ke6 {[%clk 00:00:43]} {[%emt 00:00:03]} 48. Rb8 {[%clk 00:04:04]} {[%emt
00:00:35]} f6 {[%clk 00:00:17]} {[%emt 00:00:32]} 49. Nd3 {[%clk 00:04:03]}
{[%emt 00:00:06]} Kf7 {[%clk 00:00:14]} {[%emt 00:00:08]} 50. Rh8 {[%clk
00:03:23]} {[%emt 00:00:44]} Bf8 {[%clk 00:00:16]} {[%emt 00:00:04]} 51. Nc5
{[%clk 00:03:17]} {[%emt 00:00:11]} Rd6 {[%clk 00:00:12]} {[%emt 00:00:09]} 52.
e4 {[%clk 00:02:37]} {[%emt 00:00:45]} Kg7 {[%clk 00:00:07]} {[%emt 00:00:11]}
53. e5 {[%clk 00:02:37]} {[%emt 00:00:05]} fxe5 {[%clk 00:00:10]} {[%emt
00:00:02]} 54. dxe5 {[%clk 00:02:41]} Rb6 {[%clk 00:00:12]} {[%emt 00:00:03]}
55. Rxf8 {[%clk 00:02:38]} {[%emt 00:00:07]} 1-0

[Event "SS Manhem Chess Week 2019 Goteborg Open"]
[Site "Molnlycke kulturhus, Biblioteksgatan 2, Molnlycke, Sweden"]
[Date "2019.08.16"]
[Round "2.9"]
[White "Olsson, William"]
[Black "Kockum, Anton Frisk"]
[Result "0-1"]
[TimeControl "15 minutes + 5 seconds per move from move one (Round 1 - 4) / 90 minutes + 30 seconds per move from move one (Round 5 - 8)"]
[BlackTitle "FM"]
[WhiteFideId "1741721"]
[BlackFideId "1709143"]
[WhiteElo "2015"]
[BlackElo "2367"]

1. c4 {[%clk 00:15:09]} {[%emt 00:27:11]} g5 {[%clk 00:15:04]} {[%emt
00:00:05]} 2. Nc3 {[%clk 00:14:31]} {[%emt 00:00:44]} Bg7 {[%clk 00:14:59]}
{[%emt 00:00:10]} 3. d3 {[%clk 00:14:29]} {[%emt 00:00:07]} h6 {[%clk
00:15:00]} {[%emt 00:00:04]} 4. g3 {[%clk 00:14:29]} {[%emt 00:00:05]} c5
{[%clk 00:14:56]} {[%emt 00:00:09]} 5. Bg2 {[%clk 00:14:33]} {[%emt 00:00:02]}
Nc6 {[%clk 00:14:58]} {[%emt 00:00:03]} 6. Nf3 {[%clk 00:14:29]} {[%emt
00:00:09]} d6 {[%clk 00:14:51]} {[%emt 00:00:12]} 7. Bd2 {[%clk 00:14:30]}
{[%emt 00:00:03]} Bg4 {[%clk 00:13:08]} {[%emt 00:01:48]} 8. a3 {[%clk
00:13:47]} {[%emt 00:00:48]} Qd7 {[%clk 00:12:58]} {[%emt 00:00:16]} 9. h3
{[%clk 00:13:12]} {[%emt 00:00:40]} Be6 {[%clk 00:12:55]} {[%emt 00:00:07]} 10.
Rb1 {[%clk 00:12:42]} {[%emt 00:00:35]} a5 {[%clk 00:11:15]} {[%emt 00:01:45]}
11. Nd5 {[%clk 00:11:05]} {[%emt 00:01:42]} Bxd5 {[%clk 00:10:36]} {[%emt
00:00:44]} 12. cxd5 {[%clk 00:11:08]} {[%emt 00:00:02]} Nd4 {[%clk 00:09:40]}
{[%emt 00:01:00]} 13. Nxd4 {[%clk 00:10:50]} {[%emt 00:00:24]} Bxd4 {[%clk
00:08:42]} {[%emt 00:01:03]} 14. e3 {[%clk 00:08:12]} {[%emt 00:02:43]} Bg7
{[%clk 00:08:41]} {[%emt 00:00:07]} 15. Bc3 {[%clk 00:07:59]} {[%emt 00:00:18]}
Bxc3+ {[%clk 00:07:07]} {[%emt 00:01:39]} 16. bxc3 {[%clk 00:08:03]} b5 {[%clk
00:07:09]} {[%emt 00:00:04]} 17. d4 {[%clk 00:07:22]} {[%emt 00:00:47]} Rc8
{[%clk 00:06:35]} {[%emt 00:00:38]} 18. Qb3 {[%clk 00:05:45]} {[%emt 00:01:42]}
cxd4 {[%clk 00:06:24]} {[%emt 00:00:16]} 19. exd4 {[%clk 00:05:32]} {[%emt
00:00:17]} Rb8 {[%clk 00:02:15]} {[%emt 00:04:15]} 20. O-O {[%clk 00:05:01]}
{[%emt 00:00:36]} Nf6 {[%clk 00:02:17]} {[%emt 00:00:02]} 21. a4 {[%clk
00:03:08]} {[%emt 00:01:58]} b4 {[%clk 00:02:20]} {[%emt 00:00:02]} 22. c4
{[%clk 00:03:10]} {[%emt 00:00:03]} Rc8 {[%clk 00:01:59]} {[%emt 00:00:27]} 23.
Rbc1 {[%clk 00:02:41]} {[%emt 00:00:34]} O-O {[%clk 00:01:12]} {[%emt
00:00:52]} 24. c5 {[%clk 00:02:29]} {[%emt 00:00:17]} Rfe8 {[%clk 00:00:51]}
{[%emt 00:00:26]} 25. Rfe1 {[%clk 00:02:25]} {[%emt 00:00:09]} Qa7 {[%clk
00:00:52]} {[%emt 00:00:05]} 26. Qc4 {[%clk 00:01:24]} {[%emt 00:01:07]} Rb8
{[%clk 00:00:34]} {[%emt 00:00:23]} 27. Re3 {[%clk 00:01:18]} {[%emt 00:00:10]}
Rec8 {[%clk 00:00:30]} {[%emt 00:00:09]} 28. c6 {[%clk 00:00:35]} {[%emt
00:00:48]} Rc7 {[%clk 00:00:26]} {[%emt 00:00:09]} 29. Rce1 {[%clk 00:00:22]}
{[%emt 00:00:18]} Kg7 {[%clk 00:00:24]} {[%emt 00:00:08]} 30. Rb3 {[%clk
00:00:16]} {[%emt 00:00:11]} Re8 {[%clk 00:00:23]} {[%emt 00:00:06]} 31. Bf1
{[%clk 00:00:14]} {[%emt 00:00:07]} Qb8 {[%clk 00:00:17]} {[%emt 00:00:11]} 32.
Bg2 {[%clk 00:00:14]} {[%emt 00:00:04]} Qc8 {[%clk 00:00:16]} {[%emt 00:00:06]}
33. Qb5 {[%clk 00:00:12]} {[%emt 00:00:07]} Qa8 {[%clk 00:00:15]} {[%emt
00:00:07]} 34. Qb6 {[%clk 00:00:09]} {[%emt 00:00:08]} Ra7 {[%clk 00:00:11]}
{[%emt 00:00:09]} 35. Qb5 {[%clk 00:00:08]} {[%emt 00:00:05]} Rb8 {[%clk
00:00:13]} {[%emt 00:00:04]} 36. Qd3 {[%clk 00:00:11]} {[%emt 00:00:02]} Rc7
{[%clk 00:00:16]} {[%emt 00:00:02]} 37. Kh2 {[%clk 00:00:07]} {[%emt 00:00:08]}
Rh8 {[%clk 00:00:17]} {[%emt 00:00:05]} 38. Qb5 {[%clk 00:00:08]} {[%emt
00:00:04]} Qa7 {[%clk 00:00:18]} {[%emt 00:00:04]} 39. Qd3 {[%clk 00:00:11]}
{[%emt 00:00:02]} Qb6 {[%clk 00:00:17]} {[%emt 00:00:06]} 40. Qd2 {[%clk
00:00:06]} {[%emt 00:00:10]} Qb8 {[%clk 00:00:14]} {[%emt 00:00:08]} 41. f4
{[%clk 00:00:08]} {[%emt 00:00:03]} g4 {[%clk 00:00:13]} {[%emt 00:00:07]} 42.
h4 {[%clk 00:00:11]} {[%emt 00:00:02]} Re8 {[%clk 00:00:11]} {[%emt 00:00:06]}
43. Qd3 {[%clk 00:00:10]} {[%emt 00:00:07]} Qa7 {[%clk 00:00:13]} {[%emt
00:00:04]} 44. Rb2 {[%clk 00:00:08]} {[%emt 00:00:07]} e6 {[%clk 00:00:10]}
{[%emt 00:00:08]} 45. dxe6 {[%clk 00:00:10]} {[%emt 00:00:03]} fxe6 {[%clk
00:00:14]} {[%emt 00:00:01]} 46. Rbe2 {[%clk 00:00:10]} {[%emt 00:00:05]} Kf7
{[%clk 00:00:16]} {[%emt 00:00:03]} 47. d5 {[%clk 00:00:12]} {[%emt 00:00:03]}
Rce7 {[%clk 00:00:09]} {[%emt 00:00:11]} 48. dxe6+ {[%clk 00:00:13]} {[%emt
00:00:04]} Rxe6 {[%clk 00:00:13]} {[%emt 00:00:01]} 49. Bd5 {[%clk 00:00:16]}
{[%emt 00:00:02]} Nxd5 {[%clk 00:00:15]} {[%emt 00:00:03]} 50. Qh7+ {[%clk
00:00:19]} {[%emt 00:00:02]} Kf8 {[%clk 00:00:19]} {[%emt 00:00:02]} 51. Qxa7
{[%clk 00:00:07]} {[%emt 00:00:17]} Rxe2+ {[%clk 00:00:22]} {[%emt 00:00:02]}
52. Rxe2 {[%clk 00:00:11]} Rxe2+ {[%clk 00:00:26]} {[%emt 00:00:01]} 53. Kg1
{[%clk 00:00:15]} Rc2 {[%clk 00:00:20]} {[%emt 00:00:11]} 54. Qb8+ {[%clk
00:00:18]} {[%emt 00:00:02]} Ke7 {[%clk 00:00:23]} {[%emt 00:00:02]} 55. Qb7+
{[%clk 00:00:18]} {[%emt 00:00:04]} Kf6 {[%clk 00:00:24]} {[%emt 00:00:05]} 56.
Qd7 {[%clk 00:00:19]} {[%emt 00:00:03]} Ne7 {[%clk 00:00:13]} {[%emt 00:00:17]}
57. Qxd6+ {[%clk 00:00:21]} {[%emt 00:00:02]} Kf7 {[%clk 00:00:18]} 58. c7
{[%clk 00:00:17]} {[%emt 00:00:09]} b3 {[%clk 00:00:21]} {[%emt 00:00:01]} 59.
Qd3 {[%clk 00:15:05]} 0-1

[Event "SS Manhem Chess Week 2019 Goteborg Open"]
[Site "Molnlycke kulturhus, Biblioteksgatan 2, Molnlycke, Sweden"]
[Date "2019.08.16"]
[Round "2.10"]
[White "Rydstrom, Tom"]
[Black "Svensson, Leif"]
[Result "1-0"]
[TimeControl "15 minutes + 5 seconds per move from move one (Round 1 - 4) / 90 minutes + 30 seconds per move from move one (Round 5 - 8)"]
[WhiteTitle "FM"]
[WhiteFideId "1714830"]
[BlackFideId "1702459"]
[WhiteElo "2314"]
[BlackElo "2027"]

1. Nf3 {[%clk 00:15:08]} d5 {[%clk 00:15:08]} {[%emt 00:00:02]} 2. g3 {[%clk
00:15:12]} {[%emt 00:00:01]} Bg4 {[%clk 00:14:45]} {[%emt 00:00:27]} 3. Bg2
{[%clk 00:15:16]} {[%emt 00:00:02]} Nd7 {[%clk 00:14:48]} {[%emt 00:00:02]} 4.
O-O {[%clk 00:15:14]} {[%emt 00:00:07]} c6 {[%clk 00:14:47]} {[%emt 00:00:06]}
5. d4 {[%clk 00:15:05]} {[%emt 00:00:14]} e6 {[%clk 00:14:43]} {[%emt
00:00:10]} 6. Nbd2 {[%clk 00:15:07]} {[%emt 00:00:03]} Ngf6 {[%clk 00:14:37]}
{[%emt 00:00:10]} 7. Re1 {[%clk 00:15:11]} {[%emt 00:00:02]} Be7 {[%clk
00:14:31]} {[%emt 00:00:11]} 8. e4 {[%clk 00:13:52]} {[%emt 00:01:24]} dxe4
{[%clk 00:14:32]} {[%emt 00:00:04]} 9. Nxe4 {[%clk 00:13:56]} {[%emt 00:00:02]}
Nxe4 {[%clk 00:14:33]} {[%emt 00:00:04]} 10. Rxe4 {[%clk 00:13:59]} {[%emt
00:00:02]} Nf6 {[%clk 00:14:26]} {[%emt 00:00:12]} 11. Re1 {[%clk 00:14:02]}
{[%emt 00:00:02]} h6 {[%clk 00:14:05]} {[%emt 00:00:26]} 12. h3 {[%clk
00:13:44]} {[%emt 00:00:23]} Bf5 {[%clk 00:13:23]} {[%emt 00:00:48]} 13. c3
{[%clk 00:13:42]} {[%emt 00:00:07]} O-O {[%clk 00:13:20]} {[%emt 00:00:07]} 14.
Ne5 {[%clk 00:13:06]} {[%emt 00:00:42]} Qb6 {[%clk 00:11:06]} {[%emt 00:02:20]}
15. Qe2 {[%clk 00:12:38]} {[%emt 00:00:33]} Rad8 {[%clk 00:10:59]} {[%emt
00:00:11]} 16. Bf4 {[%clk 00:06:21]} {[%emt 00:06:23]} Nd5 {[%clk 00:09:47]}
{[%emt 00:01:18]} 17. Bc1 {[%clk 00:05:26]} {[%emt 00:01:00]} c5 {[%clk
00:08:47]} {[%emt 00:01:05]} 18. dxc5 {[%clk 00:05:21]} {[%emt 00:00:10]} Bxc5
{[%clk 00:08:47]} {[%emt 00:00:04]} 19. a3 {[%clk 00:05:21]} {[%emt 00:00:06]}
f6 {[%clk 00:08:12]} {[%emt 00:00:40]} 20. Nc4 {[%clk 00:04:48]} {[%emt
00:00:38]} Qa6 {[%clk 00:04:57]} {[%emt 00:03:21]} 21. Ne3 {[%clk 00:04:52]}
{[%emt 00:00:01]} Qxe2 {[%clk 00:04:54]} {[%emt 00:00:07]} 22. Rxe2 {[%clk
00:04:56]} {[%emt 00:00:01]} Nxe3 {[%clk 00:04:53]} {[%emt 00:00:06]} 23. Bxe3
{[%clk 00:05:00]} {[%emt 00:00:01]} Bxe3 {[%clk 00:04:52]} {[%emt 00:00:07]} 24.
Rxe3 {[%clk 00:05:04]} {[%emt 00:00:01]} Rd3 {[%clk 00:04:28]} {[%emt
00:00:28]} 25. Rxd3 {[%clk 00:04:46]} {[%emt 00:00:23]} Bxd3 {[%clk 00:04:31]}
{[%emt 00:00:02]} 26. Rd1 {[%clk 00:04:47]} {[%emt 00:00:04]} Ba6 {[%clk
00:04:26]} {[%emt 00:00:10]} 27. f4 {[%clk 00:03:48]} {[%emt 00:01:03]} g5
{[%clk 00:04:05]} {[%emt 00:00:26]} 28. fxg5 {[%clk 00:03:34]} {[%emt
00:00:20]} hxg5 {[%clk 00:04:05]} {[%emt 00:00:05]} 29. Kf2 {[%clk 00:03:17]}
{[%emt 00:00:21]} Rf7 {[%clk 00:03:54]} {[%emt 00:00:16]} 30. Ke3 {[%clk
00:02:35]} {[%emt 00:00:48]} Re7 {[%clk 00:03:51]} {[%emt 00:00:08]} 31. a4
{[%clk 00:02:14]} {[%emt 00:00:27]} Kf7 {[%clk 00:03:48]} {[%emt 00:00:07]} 32.
a5 {[%clk 00:02:18]} b6 {[%clk 00:03:35]} {[%emt 00:00:19]} 33. Rd6 {[%clk
00:02:22]} Bb7 {[%clk 00:03:38]} {[%emt 00:00:02]} 34. Bxb7 {[%clk 00:01:49]}
{[%emt 00:00:38]} Rxb7 {[%clk 00:03:42]} 35. a6 {[%clk 00:01:18]} {[%emt
00:00:36]} Rc7 {[%clk 00:03:42]} {[%emt 00:00:04]} 36. Rd8 {[%clk 00:01:22]}
Ke7 {[%clk 00:03:43]} {[%emt 00:00:04]} 37. Rb8 {[%clk 00:01:17]} {[%emt
00:00:10]} Kd7 {[%clk 00:03:47]} {[%emt 00:00:01]} 38. h4 {[%clk 00:01:12]}
{[%emt 00:00:09]} gxh4 {[%clk 00:03:46]} {[%emt 00:00:05]} 39. gxh4 {[%clk
00:01:17]} {[%emt 00:00:01]} Kc6 {[%clk 00:03:09]} {[%emt 00:00:42]} 40. Rb7
{[%clk 00:01:06]} {[%emt 00:00:16]} Rc8 {[%clk 00:02:00]} {[%emt 00:01:14]} 41.
Kf3 {[%clk 00:00:53]} {[%emt 00:00:18]} b5 {[%clk 00:02:03]} {[%emt 00:00:01]}
42. Rxa7 {[%clk 00:00:52]} {[%emt 00:00:06]} Kb6 {[%clk 00:02:07]} 43. Re7
{[%clk 00:00:56]} 1-0

[Event "SS Manhem Chess Week 2019 Goteborg Open"]
[Site "Molnlycke kulturhus, Biblioteksgatan 2, Molnlycke, Sweden"]
[Date "2019.08.16"]
[Round "2.11"]
[White "Johansson, Roy"]
[Black "Welin, Mats"]
[Result "0-1"]
[TimeControl "15 minutes + 5 seconds per move from move one (Round 1 - 4) / 90 minutes + 30 seconds per move from move one (Round 5 - 8)"]
[BlackTitle "FM"]
[WhiteFideId "1745972"]
[BlackFideId "1705180"]
[WhiteElo "1976"]
[BlackElo "2310"]

1. d4 {[%clk 01:30:58]} d5 {[%clk 01:29:57]} {[%emt 00:19:54]} 2. Nf3 {[%clk
00:14:55]} {[%emt 08:30:16]} Nf6 {[%clk 00:15:09]} {[%emt 00:57:00]} 3. Bf4
{[%clk 00:15:03]} c5 {[%clk 00:15:11]} {[%emt 00:00:06]} 4. e3 {[%clk
00:15:06]} {[%emt 00:00:02]} Nc6 {[%clk 00:15:15]} {[%emt 00:00:02]} 5. c3
{[%clk 00:15:09]} {[%emt 00:00:02]} Qb6 {[%clk 00:15:16]} {[%emt 00:00:03]} 6.
Qb3 {[%clk 00:15:02]} {[%emt 00:00:11]} c4 {[%clk 00:15:17]} {[%emt 00:00:04]}
7. Qc2 {[%clk 00:15:02]} {[%emt 00:00:06]} Bf5 {[%clk 00:15:16]} {[%emt
00:00:05]} 8. Qc1 {[%clk 00:15:05]} {[%emt 00:00:03]} Nh5 {[%clk 00:15:01]}
{[%emt 00:00:19]} 9. Bg3 {[%clk 00:15:04]} {[%emt 00:00:07]} e6 {[%clk
00:14:57]} {[%emt 00:00:09]} 10. Be2 {[%clk 00:14:57]} {[%emt 00:00:12]} h6
{[%clk 00:14:35]} {[%emt 00:00:27]} 11. Nbd2 {[%clk 00:14:42]} {[%emt
00:00:20]} Qa5 {[%clk 00:14:26]} {[%emt 00:00:14]} 12. b3 {[%clk 00:14:05]}
{[%emt 00:00:42]} Ba3 {[%clk 00:14:17]} {[%emt 00:00:14]} 13. Qd1 {[%clk
00:13:51]} {[%emt 00:00:19]} Qxc3 {[%clk 00:13:54]} {[%emt 00:00:28]} 14. bxc4
{[%clk 00:13:42]} {[%emt 00:00:14]} Bc2 {[%emt 00:01:18]} 15. Nb1 {[%emt
00:00:03]} 0-1

[Event "SS Manhem Chess Week 2019 Goteborg Open"]
[Site "Molnlycke kulturhus, Biblioteksgatan 2, Molnlycke, Sweden"]
[Date "2019.08.16"]
[Round "2.12"]
[White "Mitra, Akash"]
[Black "Petersson, Baldur Teodor"]
[Result "0-1"]
[TimeControl "15 minutes + 5 seconds per move from move one (Round 1 - 4) / 90 minutes + 30 seconds per move from move one (Round 5 - 8)"]
[BlackTitle "CM"]
[WhiteFideId "1726714"]
[BlackFideId "2309157"]
[WhiteElo "1937"]
[BlackElo "2255"]

1. f4 {[%clk 00:15:04]} {[%emt 00:00:06]} d5 {[%clk 00:15:02]} {[%emt
00:00:08]} 2. Nf3 {[%clk 00:15:06]} {[%emt 00:00:05]} Nf6 {[%clk 00:15:03]}
{[%emt 00:00:03]} 3. g3 {[%clk 00:15:10]} {[%emt 00:00:01]} c5 {[%clk
00:14:53]} {[%emt 00:00:14]} 4. Bg2 {[%clk 00:15:14]} Nc6 {[%clk 00:14:53]}
{[%emt 00:00:07]} 5. O-O {[%clk 00:15:16]} {[%emt 00:00:03]} g6 {[%clk
00:14:34]} {[%emt 00:00:23]} 6. d3 {[%clk 00:15:19]} {[%emt 00:00:02]} Bg7
{[%clk 00:14:37]} {[%emt 00:00:03]} 7. Qe1 {[%clk 00:14:49]} {[%emt 00:00:36]}
d4 {[%clk 00:13:41]} {[%emt 00:01:00]} 8. c4 {[%clk 00:13:57]} {[%emt
00:00:57]} Ng4 {[%clk 00:13:43]} {[%emt 00:00:02]} 9. h3 {[%clk 00:13:50]}
{[%emt 00:00:12]} Ne3 {[%clk 00:13:39]} {[%emt 00:00:09]} 10. Bxe3 {[%clk
00:13:52]} {[%emt 00:00:04]} dxe3 {[%clk 00:13:43]} {[%emt 00:00:02]} 11. Nc3
{[%clk 00:13:48]} {[%emt 00:00:08]} Nd4 {[%clk 00:13:37]} {[%emt 00:00:10]} 12.
Nxd4 {[%clk 00:13:41]} {[%emt 00:00:12]} cxd4 {[%clk 00:13:38]} {[%emt
00:00:04]} 13. Ne4 {[%clk 00:13:00]} {[%emt 00:00:46]} O-O {[%clk 00:13:25]}
{[%emt 00:00:19]} 14. b4 {[%clk 00:12:38]} {[%emt 00:00:27]} e5 {[%clk
00:13:23]} {[%emt 00:00:07]} 15. fxe5 {[%clk 00:11:51]} {[%emt 00:00:52]} Bxe5
{[%clk 00:13:25]} {[%emt 00:00:02]} 16. g4 {[%emt 00:01:18]} f5 {[%clk
00:12:43]} {[%emt 00:00:44]} 17. gxf5 {[%clk 00:10:43]} {[%emt 00:00:02]} Bxf5
{[%clk 00:12:46]} {[%emt 00:00:03]} 18. Rc1 {[%emt 00:03:01]} Bc7 {[%clk
00:10:18]} {[%emt 00:00:48]} 19. Nc5 {[%clk 00:07:41]} {[%emt 00:01:57]} Qd6
{[%clk 00:10:12]} {[%emt 00:00:12]} 20. Rf3 {[%clk 00:07:09]} {[%emt 00:00:37]}
Qh2+ {[%clk 00:10:01]} {[%emt 00:00:15]} 21. Kf1 {[%clk 00:07:08]} {[%emt
00:00:06]} Bxh3 {[%clk 00:10:03]} {[%emt 00:00:03]} 22. Bxh3 {[%clk 00:06:57]}
{[%emt 00:00:16]} Qxh3+ {[%clk 00:09:58]} {[%emt 00:00:10]} 23. Kg1 {[%clk
00:06:55]} {[%emt 00:00:06]} Qh2+ {[%clk 00:09:58]} {[%emt 00:00:04]} 24. Kf1
{[%clk 00:06:59]} {[%emt 00:00:02]} Qh1# {[%clk 00:15:05]} {[%emt 00:00:01]}
0-1